[Event "Titled Tuesday Blitz August 15 Late 2023"]
[White "Grigoriants, Sergey"]
[Black "Klukin, Kirill"]
[WhiteFideId "4130804"]
[BlackFideId "24199273"]
[WhiteElo "2963"]
[BlackElo "2827"]
[Result "1-0"]
[Round "6"]
[TimeControl "180+1"]
[Date "2023.08.15"]
[WhiteClock "0:00:29"]
[BlackClock "0:00:01"]
[Board "16"]

1. d4 {[%clk 0:02:55]}  f5 {[%clk 0:03:00]} 2. Bg5 {[%clk 0:02:54]}  Nf6 {[%clk 0:02:54]} 3. Bxf6 {[%clk 0:02:53]}  exf6 {[%clk 0:02:55]} 4. e3 {[%clk 0:02:53]}  c6 {[%clk 0:02:50]} 5. c4 {[%clk 0:02:51]}  d6 {[%clk 0:02:50]} 6. Nc3 {[%clk 0:02:51]}  g6 {[%clk 0:02:48]} 7. h4 {[%clk 0:02:51]}  h5 {[%clk 0:02:42]} 8. Bd3 {[%clk 0:02:46]}  Be6 {[%clk 0:02:42]} 9. Nge2 {[%clk 0:02:46]}  Bh6 {[%clk 0:02:42]} 10. d5 {[%clk 0:02:37]}  Bf7 {[%clk 0:02:40]} 11. Nd4 {[%clk 0:02:33]}  O-O {[%clk 0:02:33]} 12. Qf3 {[%clk 0:02:31]}  Nd7 {[%clk 0:02:21]} 13. Qg3 {[%clk 0:02:26]}  Kh8 {[%clk 0:02:00]} 14. Ne6 {[%clk 0:01:51]}  Bxe6 {[%clk 0:01:58]} 15. Qxg6 {[%clk 0:01:51]}  Bg8 {[%clk 0:01:03]} 16. Qxh6+ {[%clk 0:01:48]}  Bh7 {[%clk 0:01:03]} 17. Bxf5 {[%clk 0:01:48]}  Rf7 {[%clk 0:01:04]} 18. Qxh5 {[%clk 0:01:43]}  Rg7 {[%clk 0:01:04]} 19. Bxh7 {[%clk 0:01:29]}  Rxh7 {[%clk 0:01:04]} 20. Qf5 {[%clk 0:01:30]}  Qe7 {[%clk 0:01:02]} 21. O-O-O {[%clk 0:01:20]}  Ne5 {[%clk 0:01:02]} 22. Rd4 {[%clk 0:01:10]}  c5 {[%clk 0:00:39]} 23. Rf4 {[%clk 0:01:10]}  Rf8 {[%clk 0:00:38]} 24. Rd1 {[%clk 0:01:02]}  a6 {[%clk 0:00:38]} 25. g4 {[%clk 0:00:58]}  b5 {[%clk 0:00:38]} 26. g5 {[%clk 0:00:55]}  bxc4 {[%clk 0:00:38]} 27. gxf6 {[%clk 0:00:54]}  Qb7 {[%clk 0:00:35]} 28. Qe6 {[%clk 0:00:33]}  Rb8 {[%clk 0:00:30]} 29. Na4 {[%clk 0:00:29]}  Nd3+ {[%clk 0:00:14]} 30. Rxd3 {[%clk 0:00:29]}  cxd3 {[%clk 0:00:15]} 31. f7 {[%clk 0:00:29]}  Rf8 {[%clk 0:00:04]} 32. Qf6+ {[%clk 0:00:29]}  Rg7 {[%clk 0:00:01]} 33. Qh6+ {[%clk 0:00:29]} 1-0


[Site "https://www.chess.com"]

[Event "Titled Tuesday Blitz August 15 Late 2023"]
[White "Stearman, Josiah"]
[Black "Keymer, Vincent"]
[WhiteFideId "2062496"]
[BlackFideId "12940690"]
[WhiteElo "2773"]
[BlackElo "2941"]
[Result "0-1"]
[Round "6"]
[TimeControl "180+1"]
[Date "2023.08.15"]
[WhiteClock "0:00:25"]
[BlackClock "0:01:09"]
[Board "19"]

1. e4 {[%clk 0:02:59]}  c6 {[%clk 0:02:54]} 2. d4 {[%clk 0:02:58]}  d5 {[%clk 0:02:54]} 3. e5 {[%clk 0:02:59]}  Bf5 {[%clk 0:02:54]} 4. h4 {[%clk 0:02:58]}  h6 {[%clk 0:02:55]} 5. h5 {[%clk 0:02:58]}  e6 {[%clk 0:02:54]} 6. g4 {[%clk 0:02:53]}  Be4 {[%clk 0:02:53]} 7. f3 {[%clk 0:02:52]}  Bh7 {[%clk 0:02:53]} 8. c4 {[%clk 0:02:49]}  Ne7 {[%clk 0:02:46]} 9. Nc3 {[%clk 0:02:48]}  Nd7 {[%clk 0:02:40]} 10. c5 {[%clk 0:02:41]}  b6 {[%clk 0:02:38]} 11. cxb6 {[%clk 0:02:29]}  axb6 {[%clk 0:02:37]} 12. f4 {[%clk 0:02:30]}  c5 {[%clk 0:02:32]} 13. Nf3 {[%clk 0:02:29]}  Nc6 {[%clk 0:02:32]} 14. Bb5 {[%clk 0:02:27]}  Nxd4 {[%clk 0:02:23]} 15. Nxd4 {[%clk 0:02:26]}  cxd4 {[%clk 0:02:24]} 16. Qxd4 {[%clk 0:02:26]}  Bc5 {[%clk 0:02:24]} 17. Qd1 {[%clk 0:02:23]}  O-O {[%clk 0:02:25]} 18. Qe2 {[%clk 0:02:05]}  d4 {[%clk 0:01:34]} 19. Ne4 {[%clk 0:02:00]}  Bb4+ {[%clk 0:01:34]} 20. Bd2 {[%clk 0:01:55]}  Bxe4 {[%clk 0:01:30]} 21. Qxe4 {[%clk 0:01:46]}  Bxd2+ {[%clk 0:01:30]} 22. Kxd2 {[%clk 0:01:46]}  Nc5 {[%clk 0:01:31]} 23. Qg2 {[%clk 0:01:37]}  f6 {[%clk 0:01:23]} 24. Bc4 {[%clk 0:01:06]}  fxe5 {[%clk 0:01:20]} 25. f5 {[%clk 0:01:05]}  Ra4 {[%clk 0:01:14]} 26. b3 {[%clk 0:00:57]}  Rxc4 {[%clk 0:01:14]} 27. bxc4 {[%clk 0:00:58]}  Qg5+ {[%clk 0:01:14]} 28. Kc2 {[%clk 0:00:57]}  e4 {[%clk 0:01:10]} 29. Raf1 {[%clk 0:00:44]}  exf5 {[%clk 0:01:08]} 30. Qd2 {[%clk 0:00:28]}  d3+ {[%clk 0:01:08]} 31. Kc1 {[%clk 0:00:25]}  e3 {[%clk 0:01:09]} 0-1


[Site "https://www.chess.com"]

[Event "Titled Tuesday Blitz August 15 Late 2023"]
[White "Martinez Alcantara, Jose Eduardo"]
[Black "Nefedov, Sergey"]
[WhiteFideId "3805662"]
[BlackFideId "24113417"]
[WhiteElo "3004"]
[BlackElo "2631"]
[Result "1-0"]
[Round "6"]
[TimeControl "180+1"]
[Date "2023.08.15"]
[WhiteClock "0:02:08"]
[BlackClock "0:01:01"]
[Board "25"]

1. e4 {[%clk 0:03:00]}  d5 {[%clk 0:02:59]} 2. exd5 {[%clk 0:02:51]}  Qxd5 {[%clk 0:03:00]} 3. Nf3 {[%clk 0:02:52]}  Nf6 {[%clk 0:02:59]} 4. Be2 {[%clk 0:02:53]}  e5 {[%clk 0:02:59]} 5. O-O {[%clk 0:02:53]}  e4 {[%clk 0:02:58]} 6. Nc3 {[%clk 0:02:54]}  Qa5 {[%clk 0:02:59]} 7. Nd4 {[%clk 0:02:54]}  Qe5 {[%clk 0:02:58]} 8. Ndb5 {[%clk 0:02:45]}  c6 {[%clk 0:02:43]} 9. d4 {[%clk 0:02:43]}  Qe7 {[%clk 0:02:43]} 10. Na3 {[%clk 0:02:37]}  Be6 {[%clk 0:02:37]} 11. Bg5 {[%clk 0:02:35]}  Bd5 {[%clk 0:02:17]} 12. Nc4 {[%clk 0:02:33]}  Nbd7 {[%clk 0:02:16]} 13. Ne3 {[%clk 0:02:33]}  Qe6 {[%clk 0:02:15]} 14. Ncxd5 {[%clk 0:02:33]}  cxd5 {[%clk 0:02:14]} 15. c4 {[%clk 0:02:33]}  Bd6 {[%clk 0:02:00]} 16. Qb3 {[%clk 0:02:27]}  O-O {[%clk 0:01:59]} 17. cxd5 {[%clk 0:02:27]}  Qe8 {[%clk 0:01:51]} 18. Bb5 {[%clk 0:02:28]}  a6 {[%clk 0:01:45]} 19. Bxd7 {[%clk 0:02:25]}  Qxd7 {[%clk 0:01:45]} 20. Bxf6 {[%clk 0:02:25]}  gxf6 {[%clk 0:01:45]} 21. f3 {[%clk 0:02:22]}  f5 {[%clk 0:01:20]} 22. fxe4 {[%clk 0:02:14]}  fxe4 {[%clk 0:01:21]} 23. Nf5 {[%clk 0:02:12]}  Rae8 {[%clk 0:01:18]} 24. Qh3 {[%clk 0:02:09]}  Kh8 {[%clk 0:01:01]} 25. Qh6 {[%clk 0:02:08]} 1-0


[Site "https://www.chess.com"]

[Event "Titled Tuesday Blitz August 15 Late 2023"]
[White "Rasulov, Vugar"]
[Black "Chor, Kevin"]
[WhiteFideId "13402390"]
[BlackFideId "2090740"]
[WhiteElo "2884"]
[BlackElo "2580"]
[Result "1-0"]
[Round "6"]
[TimeControl "180+1"]
[Date "2023.08.15"]
[WhiteClock "0:00:04"]
[BlackClock "0:00:01"]
[Board "27"]

1. b3 {[%clk 0:03:00]}  Nf6 {[%clk 0:02:59]} 2. Bb2 {[%clk 0:03:01]}  g6 {[%clk 0:02:59]} 3. e4 {[%clk 0:03:01]}  d6 {[%clk 0:02:52]} 4. g3 {[%clk 0:02:54]}  Bg7 {[%clk 0:02:49]} 5. Bg2 {[%clk 0:02:55]}  O-O {[%clk 0:02:49]} 6. Ne2 {[%clk 0:02:56]}  e5 {[%clk 0:02:47]} 7. O-O {[%clk 0:02:56]}  Nc6 {[%clk 0:02:41]} 8. d4 {[%clk 0:02:55]}  exd4 {[%clk 0:02:36]} 9. Nxd4 {[%clk 0:02:56]}  Bd7 {[%clk 0:02:37]} 10. c4 {[%clk 0:02:49]}  Re8 {[%clk 0:02:35]} 11. Re1 {[%clk 0:02:47]}  Nxd4 {[%clk 0:02:32]} 12. Bxd4 {[%clk 0:02:44]}  Bc6 {[%clk 0:02:32]} 13. Nc3 {[%clk 0:02:45]}  Nd7 {[%clk 0:02:26]} 14. Bxg7 {[%clk 0:02:39]}  Kxg7 {[%clk 0:02:27]} 15. Qd2 {[%clk 0:02:39]}  Qf6 {[%clk 0:02:17]} 16. Rad1 {[%clk 0:02:37]}  Nc5 {[%clk 0:02:10]} 17. b4 {[%clk 0:02:33]}  Na4 {[%clk 0:02:00]} 18. Nxa4 {[%clk 0:02:14]}  Bxa4 {[%clk 0:02:00]} 19. Rc1 {[%clk 0:02:15]}  Bc6 {[%clk 0:01:46]} 20. Re3 {[%clk 0:02:14]}  Re7 {[%clk 0:01:27]} 21. b5 {[%clk 0:02:02]}  Bd7 {[%clk 0:01:26]} 22. a4 {[%clk 0:02:02]}  Rae8 {[%clk 0:01:24]} 23. c5 {[%clk 0:02:01]}  dxc5 {[%clk 0:01:21]} 24. Rxc5 {[%clk 0:02:01]}  c6 {[%clk 0:01:21]} 25. e5 {[%clk 0:01:56]}  Qe6 {[%clk 0:01:14]} 26. h4 {[%clk 0:01:53]}  b6 {[%clk 0:01:06]} 27. Rxc6 {[%clk 0:01:49]}  Bxc6 {[%clk 0:01:04]} 28. bxc6 {[%clk 0:01:49]}  Qc4 {[%clk 0:00:55]} 29. h5 {[%clk 0:01:42]}  Rxe5 {[%clk 0:00:46]} 30. h6+ {[%clk 0:01:41]}  Kf8 {[%clk 0:00:36]} 31. Qd6+ {[%clk 0:01:31]}  R5e7 {[%clk 0:00:31]} 32. Rxe7 {[%clk 0:01:21]}  Rxe7 {[%clk 0:00:31]} 33. Kh2 {[%clk 0:01:14]}  Qc5 {[%clk 0:00:27]} 34. Qd8+ {[%clk 0:01:03]}  Re8 {[%clk 0:00:27]} 35. c7 {[%clk 0:01:03]}  Qe7 {[%clk 0:00:17]} 36. Qb8 {[%clk 0:00:45]}  Qe5 {[%clk 0:00:08]} 37. Qxa7 {[%clk 0:00:32]}  Rc8 {[%clk 0:00:05]} 38. Qxb6 {[%clk 0:00:31]}  Qxc7 {[%clk 0:00:05]} 39. Qf6 {[%clk 0:00:31]}  Qc3 {[%clk 0:00:04]} 40. Qd6+ {[%clk 0:00:31]}  Kg8 {[%clk 0:00:04]} 41. Qd7 {[%clk 0:00:26]}  Qc7 {[%clk 0:00:03]} 42. Qd4 {[%clk 0:00:25]}  Kf8 {[%clk 0:00:02]} 43. a5 {[%clk 0:00:25]}  Rd8 {[%clk 0:00:02]} 44. Qg7+ {[%clk 0:00:23]}  Ke7 {[%clk 0:00:02]} 45. a6 {[%clk 0:00:23]}  Qb6 {[%clk 0:00:02]} 46. Qe5+ {[%clk 0:00:23]}  Kf8 {[%clk 0:00:02]} 47. Bb7 {[%clk 0:00:21]}  Qxf2+ {[%clk 0:00:02]} 48. Kh3 {[%clk 0:00:22]}  Qb6 {[%clk 0:00:02]} 49. Qa1 {[%clk 0:00:17]}  Qa7 {[%clk 0:00:01]} 50. Qh8+ {[%clk 0:00:15]}  Ke7 {[%clk 0:00:01]} 51. Qe5+ {[%clk 0:00:16]}  Kf8 {[%clk 0:00:02]} 52. Qf6 {[%clk 0:00:15]}  Rd4 {[%clk 0:00:02]} 53. Qh8+ {[%clk 0:00:14]}  Ke7 {[%clk 0:00:02]} 54. Qe5+ {[%clk 0:00:14]}  Kf8 {[%clk 0:00:03]} 55. Qg7+ {[%clk 0:00:10]}  Ke7 {[%clk 0:00:03]} 56. Qxh7 {[%clk 0:00:10]}  Qc5 {[%clk 0:00:03]} 57. Bf3 {[%clk 0:00:04]}  Qc8+ {[%clk 0:00:03]} 58. g4 {[%clk 0:00:04]}  Rd3 {[%clk 0:00:04]} 59. Qg7 {[%clk 0:00:02]}  Rxf3+ {[%clk 0:00:03]} 60. Kh4 {[%clk 0:00:03]}  Re3 {[%clk 0:00:03]} 61. Qd4 {[%clk 0:00:03]}  Re6 {[%clk 0:00:03]} 62. a7 {[%clk 0:00:03]}  Qa8 {[%clk 0:00:03]} 63. Qb4+ {[%clk 0:00:03]}  Kf6 {[%clk 0:00:03]} 64. g5+ {[%clk 0:00:03]}  Ke5 {[%clk 0:00:04]} 65. Qc5+ {[%clk 0:00:03]}  Kf4 {[%clk 0:00:04]} 66. Qf2+ {[%clk 0:00:03]}  Ke4 {[%clk 0:00:04]} 67. Qg2+ {[%clk 0:00:03]}  Kf5 {[%clk 0:00:04]} 68. Qxa8 {[%clk 0:00:04]}  Re1 {[%clk 0:00:03]} 69. Qf3+ {[%clk 0:00:03]}  Ke6 {[%clk 0:00:01]} 70. a8=Q {[%clk 0:00:04]} 1-0


[Site "https://www.chess.com"]

[Event "Titled Tuesday Blitz August 15 Late 2023"]
[White "Budrewicz, Krzysztof"]
[Black "Mekhitarian, Krikor Sevag"]
[WhiteFideId "1127950"]
[BlackFideId "2107660"]
[WhiteElo "2567"]
[BlackElo "2805"]
[Result "0-1"]
[Round "6"]
[TimeControl "180+1"]
[Date "2023.08.15"]
[WhiteClock "0:01:48"]
[BlackClock "0:01:27"]
[Board "29"]

1. d4 {[%clk 0:03:00]}  Nf6 {[%clk 0:02:59]} 2. c4 {[%clk 0:02:59]}  g6 {[%clk 0:03:00]} 3. Nc3 {[%clk 0:02:59]}  d5 {[%clk 0:03:00]} 4. Nf3 {[%clk 0:02:59]}  Bg7 {[%clk 0:03:00]} 5. h4 {[%clk 0:03:00]}  dxc4 {[%clk 0:02:50]} 6. Bg5 {[%clk 0:02:55]}  c5 {[%clk 0:02:30]} 7. d5 {[%clk 0:02:51]}  b5 {[%clk 0:02:18]} 8. Nxb5 {[%clk 0:02:36]}  Qa5+ {[%clk 0:02:15]} 9. Nc3 {[%clk 0:02:34]}  Ne4 {[%clk 0:01:53]} 10. Qa4+ {[%clk 0:02:33]}  Qxa4 {[%clk 0:01:50]} 11. Nxa4 {[%clk 0:02:34]}  Bd7 {[%clk 0:01:39]} 12. O-O-O {[%clk 0:01:57]}  Bxa4 {[%clk 0:01:30]} 13. Be3 {[%clk 0:01:53]}  Nd7 {[%clk 0:01:27]} 14. Re1 {[%clk 0:01:48]}  Rb8 {[%clk 0:01:27]} 0-1


[Site "https://www.chess.com"]

[Event "Titled Tuesday Blitz August 15 Late 2023"]
[White "Tristan, Leonardo"]
[Black "D`Arruda, Ricardo D."]
[WhiteFideId "113816"]
[BlackFideId "100692"]
[WhiteElo "2778"]
[BlackElo "2548"]
[Result "1-0"]
[Round "6"]
[TimeControl "180+1"]
[Date "2023.08.15"]
[WhiteClock "0:00:07"]
[BlackClock "0:00:17"]
[Board "31"]

1. d4 {[%clk 0:03:00]}  Nf6 {[%clk 0:02:50]} 2. Nf3 {[%clk 0:03:01]}  g6 {[%clk 0:02:49]} 3. Bf4 {[%clk 0:03:01]}  d6 {[%clk 0:02:49]} 4. e3 {[%clk 0:03:02]}  Bg7 {[%clk 0:02:49]} 5. Be2 {[%clk 0:03:02]}  O-O {[%clk 0:02:50]} 6. O-O {[%clk 0:03:02]}  c5 {[%clk 0:02:49]} 7. c3 {[%clk 0:03:02]}  b6 {[%clk 0:02:49]} 8. h3 {[%clk 0:03:02]}  Bb7 {[%clk 0:02:49]} 9. Bh2 {[%clk 0:03:02]}  Nc6 {[%clk 0:02:48]} 10. Nbd2 {[%clk 0:03:01]}  Qc7 {[%clk 0:02:48]} 11. e4 {[%clk 0:02:48]}  cxd4 {[%clk 0:02:35]} 12. cxd4 {[%clk 0:02:47]}  Nb4 {[%clk 0:02:34]} 13. Qb3 {[%clk 0:02:32]}  Nc6 {[%clk 0:02:17]} 14. Rac1 {[%clk 0:02:31]}  Qd7 {[%clk 0:02:15]} 15. d5 {[%clk 0:02:12]}  Nb8 {[%clk 0:02:02]} 16. Bb5 {[%clk 0:02:09]}  Qd8 {[%clk 0:02:01]} 17. Rfe1 {[%clk 0:01:47]}  Nfd7 {[%clk 0:02:00]} 18. Qe3 {[%clk 0:01:32]}  a6 {[%clk 0:01:56]} 19. Bc6 {[%clk 0:01:32]}  Nc5 {[%clk 0:01:49]} 20. b4 {[%clk 0:00:47]}  Bxc6 {[%clk 0:01:42]} 21. dxc6 {[%clk 0:00:47]}  Ne6 {[%clk 0:01:42]} 22. e5 {[%clk 0:00:46]}  d5 {[%clk 0:01:38]} 23. a4 {[%clk 0:00:29]}  Qc7 {[%clk 0:01:29]} 24. b5 {[%clk 0:00:24]}  axb5 {[%clk 0:01:14]} 25. axb5 {[%clk 0:00:25]}  Ra5 {[%clk 0:01:14]} 26. Rb1 {[%clk 0:00:25]}  Rd8 {[%clk 0:01:02]} 27. Nd4 {[%clk 0:00:26]}  Nxd4 {[%clk 0:00:59]} 28. Qxd4 {[%clk 0:00:26]}  e6 {[%clk 0:01:00]} 29. Nf3 {[%clk 0:00:24]}  Rc8 {[%clk 0:00:57]} 30. Bf4 {[%clk 0:00:24]}  Bf8 {[%clk 0:00:57]} 31. Bg5 {[%clk 0:00:23]}  Qa7 {[%clk 0:00:55]} 32. Qh4 {[%clk 0:00:22]}  Ra4 {[%clk 0:00:53]} 33. g4 {[%clk 0:00:22]}  h5 {[%clk 0:00:49]} 34. Bf6 {[%clk 0:00:20]}  Bh6 {[%clk 0:00:44]} 35. Ng5 {[%clk 0:00:15]}  Qa5 {[%clk 0:00:40]} 36. Be7 {[%clk 0:00:07]}  Qd2 {[%clk 0:00:35]} 37. Nxf7 {[%clk 0:00:07]}  Kxf7 {[%clk 0:00:31]} 38. Qf6+ {[%clk 0:00:08]}  Ke8 {[%clk 0:00:31]} 39. Qxe6 {[%clk 0:00:08]}  Rc7 {[%clk 0:00:22]} 40. Bd6+ {[%clk 0:00:07]}  Kd8 {[%clk 0:00:17]} 41. Qg8+ {[%clk 0:00:07]} 1-0


[Site "https://www.chess.com"]

[Event "Titled Tuesday Blitz August 15 Late 2023"]
[White "Nanu, Costica-Ciprian"]
[Black "Haydon, David L"]
[WhiteFideId "1204580"]
[BlackFideId "415405"]
[WhiteElo "2545"]
[BlackElo "2748"]
[Result "1/2-1/2"]
[Round "6"]
[TimeControl "180+1"]
[Date "2023.08.15"]
[WhiteClock "0:01:39"]
[BlackClock "0:00:31"]
[Board "32"]

1. Nf3 {[%clk 0:03:00]}  c6 {[%clk 0:02:56]} 2. b3 {[%clk 0:02:56]}  d5 {[%clk 0:02:56]} 3. Bb2 {[%clk 0:02:57]}  Nf6 {[%clk 0:02:56]} 4. g3 {[%clk 0:02:57]}  Bf5 {[%clk 0:02:55]} 5. Bg2 {[%clk 0:02:58]}  e6 {[%clk 0:02:55]} 6. O-O {[%clk 0:02:58]}  Bd6 {[%clk 0:02:55]} 7. Re1 {[%clk 0:02:58]}  O-O {[%clk 0:02:55]} 8. d3 {[%clk 0:02:59]}  Nbd7 {[%clk 0:02:52]} 9. Nbd2 {[%clk 0:02:59]}  Bg6 {[%clk 0:02:50]} 10. Nh4 {[%clk 0:02:57]}  Qc7 {[%clk 0:02:48]} 11. Nxg6 {[%clk 0:02:57]}  hxg6 {[%clk 0:02:48]} 12. e4 {[%clk 0:02:57]}  dxe4 {[%clk 0:02:48]} 13. Nxe4 {[%clk 0:02:55]}  Nxe4 {[%clk 0:02:47]} 14. Rxe4 {[%clk 0:02:52]}  Rfe8 {[%clk 0:02:42]} 15. Qd2 {[%clk 0:02:52]}  Nf6 {[%clk 0:02:39]} 16. Rh4 {[%clk 0:02:50]}  Be5 {[%clk 0:02:38]} 17. d4 {[%clk 0:02:45]}  Bd6 {[%clk 0:02:38]} 18. Re1 {[%clk 0:02:41]}  e5 {[%clk 0:02:37]} 19. dxe5 {[%clk 0:02:30]}  Bxe5 {[%clk 0:02:36]} 20. Bxe5 {[%clk 0:02:30]}  Rxe5 {[%clk 0:02:35]} 21. Rd4 {[%clk 0:02:27]}  Rxe1+ {[%clk 0:02:32]} 22. Qxe1 {[%clk 0:02:27]}  Re8 {[%clk 0:02:32]} 23. Qd2 {[%clk 0:02:26]}  Qe7 {[%clk 0:02:20]} 24. Bf3 {[%clk 0:02:25]}  Qe5 {[%clk 0:02:17]} 25. Kg2 {[%clk 0:02:25]}  g5 {[%clk 0:02:17]} 26. h3 {[%clk 0:02:22]}  g6 {[%clk 0:02:14]} 27. a4 {[%clk 0:02:22]}  Kg7 {[%clk 0:02:13]} 28. a5 {[%clk 0:02:21]}  a6 {[%clk 0:02:06]} 29. Rd3 {[%clk 0:02:19]}  Qf5 {[%clk 0:02:00]} 30. Qb4 {[%clk 0:01:56]}  Rh8 {[%clk 0:01:26]} 31. Bg4 {[%clk 0:01:55]}  Nxg4 {[%clk 0:01:21]} 32. hxg4 {[%clk 0:01:50]}  Rh2+ {[%clk 0:00:38]} 33. Kxh2 {[%clk 0:01:42]}  Qxf2+ {[%clk 0:00:38]} 34. Kh3 {[%clk 0:01:38]}  Qf1+ {[%clk 0:00:36]} 35. Kh2 {[%clk 0:01:39]}  Qf2+ {[%clk 0:00:32]} 36. Kh3 {[%clk 0:01:39]}  Qf1+ {[%clk 0:00:30]} 37. Kh2 {[%clk 0:01:39]}  Qf2+ {[%clk 0:00:31]} 1/2-1/2


[Site "https://www.chess.com"]

[Event "Titled Tuesday Blitz August 15 Late 2023"]
[White "Poltorak, Sebastian"]
[Black "Fernandez Guillen, Ernesto J."]
[WhiteFideId "1199498"]
[BlackFideId "3512428"]
[WhiteElo "2543"]
[BlackElo "2744"]
[Result "1-0"]
[Round "6"]
[TimeControl "180+1"]
[Date "2023.08.15"]
[WhiteClock "0:00:57"]
[BlackClock "0:01:09"]
[Board "33"]

1. d4 {[%clk 0:02:59]}  Nf6 {[%clk 0:02:49]} 2. c4 {[%clk 0:02:59]}  g6 {[%clk 0:02:47]} 3. Nc3 {[%clk 0:02:58]}  d5 {[%clk 0:02:45]} 4. cxd5 {[%clk 0:02:58]}  Nxd5 {[%clk 0:02:43]} 5. Bd2 {[%clk 0:02:59]}  Nxc3 {[%clk 0:02:42]} 6. Bxc3 {[%clk 0:02:57]}  Bg7 {[%clk 0:02:42]} 7. e4 {[%clk 0:02:55]}  O-O {[%clk 0:02:39]} 8. Be2 {[%clk 0:02:50]}  b6 {[%clk 0:02:40]} 9. h4 {[%clk 0:02:47]}  Bb7 {[%clk 0:02:39]} 10. d5 {[%clk 0:02:45]}  e5 {[%clk 0:02:32]} 11. Nf3 {[%clk 0:02:37]}  Nd7 {[%clk 0:02:30]} 12. Qd2 {[%clk 0:02:35]}  c6 {[%clk 0:02:28]} 13. h5 {[%clk 0:01:57]}  Re8 {[%clk 0:02:18]} 14. Rd1 {[%clk 0:01:49]}  cxd5 {[%clk 0:02:16]} 15. exd5 {[%clk 0:01:49]}  a6 {[%clk 0:02:15]} 16. Ng5 {[%clk 0:01:31]}  Rc8 {[%clk 0:01:38]} 17. Nxh7 {[%clk 0:01:09]}  Kxh7 {[%clk 0:01:26]} 18. hxg6+ {[%clk 0:01:08]}  Kxg6 {[%clk 0:01:26]} 19. Bh5+ {[%clk 0:01:03]}  Kf6 {[%clk 0:01:26]} 20. Qf4+ {[%clk 0:00:57]}  Ke7 {[%clk 0:01:09]} 21. d6+ {[%clk 0:00:57]} 1-0


[Site "https://www.chess.com"]

[Event "Titled Tuesday Blitz August 15 Late 2023"]
[White "Matinian, Nikita"]
[Black "RrainlessBobot"]
[WhiteFideId "24129100"]
[WhiteElo "2725"]
[BlackElo "2542"]
[Result "0-1"]
[Round "6"]
[TimeControl "180+1"]
[Date "2023.08.15"]
[WhiteClock "0:00:01"]
[BlackClock "0:00:07"]
[Board "35"]

1. e4 {[%clk 0:03:00]}  g6 {[%clk 0:02:57]} 2. d4 {[%clk 0:03:00]}  Bg7 {[%clk 0:02:57]} 3. Nc3 {[%clk 0:03:01]}  c5 {[%clk 0:02:58]} 4. d5 {[%clk 0:02:59]}  d6 {[%clk 0:02:57]} 5. Bb5+ {[%clk 0:02:57]}  Bd7 {[%clk 0:02:57]} 6. a4 {[%clk 0:02:58]}  Nf6 {[%clk 0:02:58]} 7. Nf3 {[%clk 0:02:57]}  O-O {[%clk 0:02:58]} 8. h3 {[%clk 0:02:56]}  Bxb5 {[%clk 0:02:56]} 9. axb5 {[%clk 0:02:56]}  Nbd7 {[%clk 0:02:56]} 10. O-O {[%clk 0:02:55]}  a6 {[%clk 0:02:49]} 11. bxa6 {[%clk 0:02:55]}  Rxa6 {[%clk 0:02:49]} 12. Rxa6 {[%clk 0:02:55]}  bxa6 {[%clk 0:02:49]} 13. Re1 {[%clk 0:02:56]}  Qb6 {[%clk 0:02:41]} 14. b3 {[%clk 0:02:45]}  Rb8 {[%clk 0:02:35]} 15. Na4 {[%clk 0:02:44]}  Qb5 {[%clk 0:02:27]} 16. Nb2 {[%clk 0:02:25]}  Ne8 {[%clk 0:02:22]} 17. Nc4 {[%clk 0:02:20]}  Nb6 {[%clk 0:02:16]} 18. Nxb6 {[%clk 0:02:20]}  Qxb6 {[%clk 0:02:14]} 19. e5 {[%clk 0:02:21]}  Qc7 {[%clk 0:01:31]} 20. e6 {[%clk 0:02:13]}  f5 {[%clk 0:01:27]} 21. h4 {[%clk 0:02:13]}  c4 {[%clk 0:01:26]} 22. h5 {[%clk 0:02:07]}  cxb3 {[%clk 0:01:26]} 23. cxb3 {[%clk 0:02:06]}  Qc3 {[%clk 0:01:25]} 24. hxg6 {[%clk 0:01:37]}  hxg6 {[%clk 0:01:20]} 25. Re3 {[%clk 0:01:38]}  Qa1 {[%clk 0:01:17]} 26. Qc2 {[%clk 0:01:34]}  Bf6 {[%clk 0:01:04]} 27. g4 {[%clk 0:01:26]}  Rb4 {[%clk 0:00:34]} 28. g5 {[%clk 0:00:59]}  Rg4+ {[%clk 0:00:31]} 29. Kh2 {[%clk 0:00:34]}  Bd4 {[%clk 0:00:27]} 30. Qc8 {[%clk 0:00:18]}  Kf8 {[%clk 0:00:27]} 31. Re2 {[%clk 0:00:12]}  Be5+ {[%clk 0:00:15]} 32. Nxe5 {[%clk 0:00:12]}  dxe5 {[%clk 0:00:15]} 33. Rc2 {[%clk 0:00:11]}  Rh4+ {[%clk 0:00:13]} 34. Kg3 {[%clk 0:00:08]}  Rg4+ {[%clk 0:00:13]} 35. Kh3 {[%clk 0:00:08]}  Qa5 {[%clk 0:00:09]} 36. b4 {[%clk 0:00:03]}  Qb5 {[%clk 0:00:09]} 37. Kh2 {[%clk 0:00:01]}  Rh4+ {[%clk 0:00:08]} 38. Kg2 {[%clk 0:00:02]}  Rg4+ {[%clk 0:00:08]} 39. Kh2 {[%clk 0:00:02]}  Kg7 {[%clk 0:00:08]} 40. Bd2 {[%clk 0:00:02]}  Qf1 {[%clk 0:00:07]} 41. Qxe8 {[%clk 0:00:01]}  Qg2# {[%clk 0:00:07]} 0-1


[Site "https://www.chess.com"]

[Event "Titled Tuesday Blitz August 15 Late 2023"]
[White "Papp, Levente"]
[Black "Martin Barcelo, Carles"]
[WhiteFideId "751243"]
[BlackFideId "24561444"]
[WhiteElo "2679"]
[BlackElo "2535"]
[Result "1-0"]
[Round "6"]
[TimeControl "180+1"]
[Date "2023.08.15"]
[WhiteClock "0:01:01"]
[BlackClock "0:00:01"]
[Board "36"]

1. e4 {[%clk 0:03:00]}  e6 {[%clk 0:02:57]} 2. d4 {[%clk 0:02:57]}  d5 {[%clk 0:02:57]} 3. Nd2 {[%clk 0:02:57]}  dxe4 {[%clk 0:02:55]} 4. Nxe4 {[%clk 0:02:57]}  Nd7 {[%clk 0:02:55]} 5. Nf3 {[%clk 0:02:50]}  Ngf6 {[%clk 0:02:56]} 6. Nxf6+ {[%clk 0:02:49]}  Nxf6 {[%clk 0:02:56]} 7. Bd3 {[%clk 0:02:47]}  c5 {[%clk 0:02:50]} 8. Be3 {[%clk 0:02:38]}  Qa5+ {[%clk 0:02:32]} 9. c3 {[%clk 0:02:34]}  cxd4 {[%clk 0:02:26]} 10. Bxd4 {[%clk 0:02:30]}  Be7 {[%clk 0:02:22]} 11. Qc2 {[%clk 0:02:30]}  h6 {[%clk 0:02:20]} 12. O-O {[%clk 0:02:24]}  O-O {[%clk 0:02:20]} 13. Rfe1 {[%clk 0:02:21]}  Qc7 {[%clk 0:01:54]} 14. Ne5 {[%clk 0:02:15]}  b6 {[%clk 0:01:52]} 15. Re3 {[%clk 0:02:09]}  Bb7 {[%clk 0:01:34]} 16. Rg3 {[%clk 0:02:09]}  Bd6 {[%clk 0:01:34]} 17. Re1 {[%clk 0:01:49]}  Nh5 {[%clk 0:01:07]} 18. Rh3 {[%clk 0:01:31]}  Nf6 {[%clk 0:00:34]} 19. Ree3 {[%clk 0:01:24]}  Rad8 {[%clk 0:00:21]} 20. Rxh6 {[%clk 0:01:09]}  gxh6 {[%clk 0:00:12]} 21. Rg3+ {[%clk 0:01:08]}  Kh8 {[%clk 0:00:12]} 22. Qd2 {[%clk 0:01:06]}  Ng4 {[%clk 0:00:02]} 23. Nxf7+ {[%clk 0:01:04]}  Kg8 {[%clk 0:00:01]} 24. Nxh6# {[%clk 0:01:01]} 1-0


[Site "https://www.chess.com"]